bitfinex/quotes_BTCUSD_20240728
["timestamp","ask_amount","ask_price","bid_price","bid_amount"]
[1722170637001,0.46158879,68223.0,68222.0,2.5]
[1722170637242,0.12518553,68223.0,68222.0,2.5]
[1722170637450,0.64101205,68223.0,68222.0,2.5]
[1722170637656,0.59023553,68223.0,68222.0,2.5]
[1722170637856,0.35571053,68223.0,68222.0,2.5]
[1722170638007,0.39948717,68223.0,68222.0,2.5]
[1722170638224,0.35571053,68223.0,68222.0,2.5]
[1722170638423,0.14918979,68223.0,68222.0,2.5]
[1722170638592,0.03192779,68223.0,68222.0,2.82068469]
[1722170638786,0.00892353,68223.0,68222.0,3.05521269]
[1722170639024,0.00892353,68223.0,68222.0,3.28974069]
[1722170639297,0.00892353,68223.0,68222.0,3.05521269]
[1722170639499,0.00892353,68223.0,68222.0,2.52561957]
[1722170640226,0.12618553,68223.0,68222.0,2.52561957]
[1722170640447,0.00592353,68223.0,68222.0,2.70342069]
[1722170640653,0.00092353,68223.0,68222.0,3.13331269]
[1722170640835,0.00192353,68223.0,68222.0,3.13331269]
[1722170641046,0.00592353,68223.0,68222.0,3.13331269]
[1722170641397,0.00092353,68223.0,68222.0,3.13331269]
[1722170641947,0.00092353,68223.0,68222.0,3.37184069]
[1722170642161,0.18289768,68231.0,68222.0,3.37184069]
[1722170642162,0.00092353,68226.0,68225.0,0.85411569]
[1722170642342,0.04376578,68235.0,68233.0,0.02561957]
[1722170642477,0.12974868,68237.0,68233.0,0.20342069]
[1722170642478,0.00092353,68234.0,68233.0,0.20342069]
[1722170642679,0.00092353,68234.0,68233.0,0.20242069]
[1722170642879,0.00092353,68234.0,68233.0,0.94087548]
[1722170643523,0.04376578,68239.0,68238.0,0.19642069]
[1722170643696,0.04376578,68239.0,68238.0,0.31365669]
[1722170643915,0.04468931,68239.0,68238.0,0.19642069]
[1722170644125,0.04468931,68239.0,68238.0,0.02361957]
[1722170644329,0.04468931,68239.0,68238.0,0.18642069]
[1722170644537,0.04468931,68239.0,68238.0,0.36532857]
[1722170644538,0.00092353,68239.0,68238.0,0.36532857]
[1722170644737,0.11815953,68239.0,68235.0,0.01361957]
[1722170644941,0.00092353,68236.0,68235.0,0.13086057]
[1722170645148,0.00092353,68236.0,68235.0,0.53814469]
[1722170645364,0.00092353,68236.0,68235.0,0.77262769]
[1722170645589,0.00092353,68237.0,68236.0,0.75900112]
[1722170645919,0.00092353,68237.0,68236.0,1.00710069]
[1722170646415,0.02392259,68237.0,68236.0,1.00710069]
[1722170647103,0.02392259,68237.0,68236.0,0.77262069]
[1722170647289,0.02492259,68237.0,68236.0,0.78262069]
[1722170647859,0.02399906,68237.0,68236.0,0.78262069]
[1722170648067,0.02399906,68237.0,68236.0,1.09660069]
[1722170648287,0.02492259,68237.0,68236.0,1.09660069]
[1722170648508,0.02492259,68237.0,68236.0,0.86212069]
[1722170648860,0.02592259,68237.0,68236.0,1.10460069]
[1722170649274,0.02592259,68237.0,68236.0,0.87012069]
[1722170649681,0.02592259,68237.0,68236.0,1.16550069]
[1722170650080,0.02492259,68237.0,68236.0,1.15750069]
[1722170650281,0.02399906,68237.0,68236.0,1.15750069]
[1722170650530,0.02499906,68237.0,68236.0,1.16950069]
[1722170651017,0.002,68237.0,68236.0,1.16950069]
[1722170651234,0.002,68237.0,68236.0,1.15950069]
[1722170651409,0.001,68237.0,68236.0,1.15950069]
[1722170651630,0.001,68237.0,68236.0,1.17350069]
[1722170652085,0.00192353,68237.0,68236.0,1.17350069]
[1722170652289,0.001,68237.0,68236.0,1.17350069]
[1722170654285,0.02399778,68237.0,68236.0,1.17350069]
[1722170654642,0.02299778,68237.0,68236.0,1.16150069]
[1722170654869,0.02299778,68237.0,68236.0,1.40798069]
[1722170655019,0.04379219,68250.0,68249.0,0.53807269]
[1722170655020,0.04471572,68250.0,68249.0,0.53807269]
[1722170655222,0.04379219,68252.0,68249.0,0.42085569]
[1722170655480,0.00092353,68250.0,68249.0,0.01361957]
[1722170655820,0.00092353,68249.0,68248.0,0.01361957]
[1722170656019,0.03112522,68249.0,68248.0,0.01361957]
[1722170656260,0.14060571,68249.0,68248.0,0.01361957]
[1722170656614,0.25782271,68249.0,68248.0,0.01361957]
[1722170656980,0.14060571,68249.0,68248.0,0.01361957]
[1722170657188,0.14060571,68249.0,68236.0,0.014]
[1722170657189,0.00092353,68242.0,68241.0,0.01361957]
[1722170657356,0.04472632,68242.0,68241.0,0.18642069]
[1722170657560,0.00092353,68242.0,68241.0,0.18642069]
[1722170657990,0.00092353,68242.0,68241.0,0.30365169]
[1722170658149,0.00092353,68242.0,68241.0,0.18642069]
[1722170658356,0.02392145,68242.0,68241.0,0.18642069]
[1722170658712,0.02392145,68242.0,68241.0,0.02361957]
[1722170658926,0.44131364,68242.0,68241.0,0.02361957]
[1722170659053,0.37560945,68242.0,68241.0,0.02361957]
[1722170659257,0.49371369,68242.0,68241.0,0.02361957]
[1722170659725,0.4061081,68242.0,68241.0,0.02361957]
[1722170660058,0.4061081,68242.0,68241.0,0.018]
[1722170660303,0.40610469,68242.0,68241.0,0.018]
[1722170660492,0.40610469,68242.0,68241.0,0.03161957]
[1722170660693,0.37560945,68242.0,68241.0,0.03161957]
[1722170660912,0.40610443,68242.0,68241.0,0.03161957]
[1722170661324,0.51563492,68242.0,68241.0,0.03161957]
[1722170662280,0.51563492,68242.0,68241.0,0.20442069]
[1722170662281,0.22878868,68242.0,68241.0,0.20442069]
[1722170662457,0.11155968,68242.0,68241.0,0.03161957]
[1722170662613,0.22878868,68242.0,68241.0,0.03161957]
[1722170662812,0.17142259,68242.0,68241.0,0.03161957]
[1722170663059,0.51541208,68242.0,68241.0,0.03161957]
[1722170663213,0.64034059,68242.0,68241.0,0.018]
[1722170663863,0.38288367,68242.0,68241.0,0.018]
[1722170664068,0.14077878,68242.0,68241.0,0.018]
[1722170664295,0.03119567,68242.0,68241.0,0.018]
[1722170666138,0.03119567,68242.0,68241.0,0.55611469]
[1722170666334,0.11889568,68242.0,68241.0,0.55611469]
[1722170666667,0.11890283,68242.0,68241.0,0.55611469]
[1722170666987,0.1189003,68242.0,68241.0,0.32165169]
[1722170667189,0.05421729,68242.0,68241.0,0.32165169]
[1722170667508,0.03121869,68242.0,68241.0,0.14885057]
[1722170668113,0.03121869,68242.0,68241.0,0.32165169]
[1722170668316,0.09711869,68242.0,68241.0,0.018]
[1722170668636,0.09711869,68242.0,68241.0,0.03161957]
[1722170669257,0.09711869,68242.0,68241.0,0.018]
[1722170669464,0.21434769,68242.0,68241.0,0.018]
[1722170669671,0.18405253,68242.0,68241.0,0.018]
[1722170669909,0.21462939,68242.0,68241.0,0.018]
[1722170670076,1.3237739,68242.0,68241.0,0.018]
[1722170670285,1.08320884,68242.0,68241.0,0.018]
[1722170670546,1.20079217,68242.0,68241.0,0.018]
[1722170670833,1.17779274,68242.0,68241.0,0.018]
[1722170671077,1.17779274,68242.0,68238.0,0.000924]
[1722170671078,0.93422431,68239.0,68238.0,0.000924]
[1722170671204,1.27491552,68239.0,68238.0,0.000924]
[1722170671405,1.17783174,68239.0,68238.0,0.000924]
[1722170672132,1.17945022,68239.0,68238.0,0.000924]
[1722170672374,1.32745435,68239.0,68238.0,0.000924]
[1722170672869,1.32746363,68239.0,68238.0,0.000924]
[1722170673078,1.2964771,68239.0,68238.0,0.000924]
[1722170673226,1.32779547,68239.0,68238.0,0.000924]
[1722170673426,1.1797973,68239.0,68238.0,0.000924]
[1722170673667,1.20279942,68239.0,68238.0,0.000924]
[1722170674052,1.20679942,68239.0,68238.0,0.000924]
[1722170674643,1.20679942,68239.0,68238.0,0.004924]
[1722170674842,1.1837973,68239.0,68238.0,0.000924]
[1722170675348,1.1867973,68239.0,68238.0,0.000924]
[1722170676177,1.18676199,68239.0,68238.0,0.000924]
[1722170676924,1.30543819,68239.0,68238.0,0.000924]
[1722170677803,1.53990819,68239.0,68238.0,0.000924]
[1722170678032,1.56290819,68239.0,68238.0,0.000924]
[1722170678448,1.66290819,68239.0,68238.0,0.000924]
[1722170678805,1.85951175,68239.0,68238.0,0.000924]
[1722170679561,1.85935416,68239.0,68238.0,0.000924]
[1722170679964,1.85935417,68239.0,68238.0,0.000924]
[1722170681325,1.74067797,68239.0,68238.0,0.000924]
[1722170681808,1.74111565,68239.0,68238.0,0.000924]
[1722170682572,1.66732454,68239.0,68238.0,0.000924]
[1722170682777,1.77327817,68239.0,68238.0,0.000924]
[1722170682982,1.75027503,68239.0,68238.0,0.000924]
[1722170683306,1.9005346,68239.0,68238.0,0.000924]
[1722170684449,2.1350046,68239.0,68238.0,0.000924]
[1722170685047,2.08408107,68239.0,68238.0,0.000924]
[1722170685251,2.1350046,68239.0,68238.0,0.000924]
[1722170685450,2.1320046,68239.0,68238.0,0.000924]
[1722170685707,2.03504319,68239.0,68238.0,0.000924]
[1722170685862,2.13212846,68239.0,68238.0,0.000924]
[1722170686067,2.12812846,68239.0,68238.0,0.000924]
[1722170686291,2.15113247,68239.0,68238.0,0.000924]
[1722170686494,2.17178672,68239.0,68238.0,0.001924]
[1722170686691,2.33761695,68239.0,68238.0,0.001924]
[1722170686869,2.34261695,68239.0,68238.0,0.002924]
[1722170687069,2.16878672,68239.0,68238.0,0.001924]
[1722170687381,2.17178672,68239.0,68238.0,0.001924]
[1722170687600,0.99301584,68225.0,68224.0,0.0015542]
[1722170687826,0.99301584,68225.0,68223.0,0.0015542]
[1722170687827,0.46628384,68224.0,68223.0,0.0015542]
[1722170688024,1.19007544,68224.0,68223.0,0.0015542]
[1722170688368,1.49125607,68224.0,68223.0,0.0015542]
[1722170688569,1.53491328,68224.0,68223.0,0.0015542]
[1722170688867,1.53491328,68224.0,68222.0,2.5]
[1722170688868,1.08313984,68223.0,68222.0,2.5]
[1722170689024,1.53937667,68223.0,68222.0,2.5]
[1722170689510,1.77415295,68223.0,68222.0,2.5]
[1722170689862,1.79716034,68223.0,68222.0,2.5]
[1722170690064,1.77415295,68223.0,68222.0,2.5]
[1722170690904,1.91623676,68223.0,68222.0,2.501]
[1722170691467,1.86629194,68223.0,68222.0,2.501]
[1722170691665,1.91629194,68223.0,68222.0,2.501]
[1722170691879,1.86629194,68223.0,68222.0,2.501]
[1722170692188,1.68176705,68223.0,68222.0,2.501]
[1722170693394,1.55968324,68223.0,68222.0,2.501]
[1722170694423,1.707379,68223.0,68222.0,2.501]
[1722170695193,1.624579,68223.0,68222.0,2.501]
[1722170695417,0.84263624,68223.0,68222.0,2.501]
[1722170695616,0.86370106,68223.0,68222.0,2.501]
[1722170695836,0.47091551,68223.0,68222.0,2.501]
[1722170696041,0.47091551,68223.0,68222.0,2.582]
[1722170696400,0.44903844,68223.0,68222.0,2.644724]
[1722170696529,0.19377011,68223.0,68222.0,2.644724]
[1722170696730,0.19377011,68223.0,68222.0,2.643724]
[1722170696731,0.05650811,68223.0,68222.0,2.643724]
[1722170696940,0.07550811,68223.0,68222.0,2.760988]
[1722170697128,0.0525023,68223.0,68222.0,2.760988]
[1722170697357,0.0425023,68223.0,68222.0,2.643724]
[1722170697552,0.0345023,68223.0,68222.0,2.760988]
[1722170697756,0.0355023,68223.0,68222.0,2.760988]
[1722170697920,0.0345023,68223.0,68222.0,2.995516]
[1722170698319,0.00192353,68223.0,68222.0,2.995516]
[1722170698524,0.00192353,68223.0,68222.0,2.643724]
[1722170698730,0.0336487,68223.0,68222.0,2.643724]
[1722170698935,0.03364845,68223.0,68222.0,2.643724]
[1722170699130,0.03264845,68223.0,68222.0,2.643724]
[1722170699650,0.14991045,68223.0,68222.0,2.643724]
[1722170700422,0.21668382,68223.0,68222.0,2.643724]
[1722170700828,0.45120882,68223.0,68222.0,2.643724]
[1722170701031,0.37571551,68223.0,68222.0,2.643724]
[1722170701160,0.17270023,68223.0,68222.0,2.643724]
[1722170701374,0.23837938,68223.0,68222.0,2.643724]
[1722170701625,0.47290438,68223.0,68222.0,2.643724]
[1722170701806,0.51669048,68223.0,68222.0,2.643724]
[1722170702461,0.40722523,68223.0,68222.0,2.643724]
[1722170703488,0.64175023,68223.0,68222.0,2.643724]
[1722170703749,0.61024051,68223.0,68222.0,2.643724]
[1722170703949,0.64208802,68223.0,68222.0,2.643724]
[1722170705461,0.75165412,68223.0,68222.0,2.643724]
[1722170706229,0.64208802,68223.0,68222.0,2.643724]
[1722170707015,1.10225389,68223.0,68222.0,2.643724]
[1722170707174,0.99009983,68223.0,68222.0,2.643724]
[1722170708273,1.28562483,68223.0,68222.0,2.500924]
[1722170708447,1.45098876,68223.0,68222.0,2.500924]
[1722170708851,1.45198876,68223.0,68222.0,2.500924]
[1722170709255,1.45098876,68223.0,68222.0,2.500924]
[1722170709672,1.45498876,68223.0,68222.0,2.500924]
[1722170709875,1.45398876,68223.0,68222.0,2.500924]
[1722170710133,1.42850821,68223.0,68222.0,2.500924]
[1722170710334,1.43150821,68223.0,68222.0,2.500924]
[1722170710450,1.48112441,68223.0,68222.0,2.500924]
[1722170710657,1.57875778,68223.0,68222.0,2.500924]
[1722170711120,1.42849821,68223.0,68222.0,2.500924]
[1722170711264,1.43849821,68223.0,68222.0,2.500924]
[1722170711648,1.15297321,68223.0,68222.0,2.500924]
[1722170711857,1.15297321,68223.0,68222.0,2.582124]
[1722170712237,1.15297321,68223.0,68222.0,2.500924]
[1722170712438,1.26827053,68223.0,68222.0,2.500924]
[1722170712641,1.50280384,68223.0,68222.0,2.500924]
[1722170712980,1.56380384,68223.0,68222.0,2.500924]
[1722170713188,1.56380438,68223.0,68222.0,2.500924]
[1722170713393,1.58681048,68223.0,68222.0,2.500924]
[1722170713789,1.47151316,68223.0,68222.0,2.500924]
[1722170713995,1.41051316,68223.0,68222.0,2.500924]
[1722170714563,1.09878928,68223.0,68222.0,2.500924]
[1722170714719,1.07578318,68223.0,68222.0,2.500924]
[1722170714906,1.15298206,68223.0,68222.0,2.500924]
[1722170716343,1.15274269,68223.0,68222.0,2.500924]
[1722170716728,1.262872,68223.0,68222.0,2.500924]
[1722170716921,1.07554381,68223.0,68222.0,2.500924]
[1722170717429,1.340142,68223.0,68222.0,2.500924]
[1722170717664,1.26294312,68223.0,68222.0,2.500924]
[1722170717870,1.09854991,68223.0,68222.0,2.500924]
[1722170718220,1.07554381,68223.0,68222.0,2.500924]
[1722170718445,0.11832638,68223.0,68222.0,2.644824]
[1722170718638,0.05267422,68223.0,68222.0,3.18303669]
[1722170718796,0.05267422,68223.0,68222.0,2.83124469]
[1722170719000,0.05267422,68223.0,68222.0,3.18303669]
[1722170719284,0.04267422,68223.0,68222.0,3.18303669]
[1722170719461,0.01092353,68223.0,68222.0,3.41756469]
[1722170719616,0.13595634,68223.0,68222.0,3.41756469]
[1722170719813,0.04812438,68223.0,68222.0,3.41756469]
[1722170720019,0.09875289,68223.0,68222.0,3.41756469]
[1722170720218,0.09875289,68223.0,68222.0,3.18303669]
[1722170720426,0.12171032,68223.0,68222.0,2.83124469]
[1722170720626,0.03443159,68223.0,68222.0,2.83124469]
[1722170721077,0.03543159,68223.0,68222.0,2.83124469]
[1722170721243,0.03443159,68223.0,68222.0,2.65844357]
[1722170721443,0.03443159,68223.0,68222.0,2.644824]
[1722170721444,0.64374873,68223.0,68222.0,2.644824]
[1722170721713,0.77649288,68223.0,68222.0,2.644824]
[1722170721837,0.61974359,68223.0,68222.0,2.644824]
[1722170722039,0.62074359,68223.0,68222.0,2.644824]
[1722170722396,0.62174359,68223.0,68222.0,2.645824]
[1722170722587,0.58823553,68223.0,68222.0,2.644824]
[1722170722764,0.6201605,68223.0,68222.0,2.644824]
[1722170722923,0.6211605,68223.0,68222.0,2.644824]
[1722170723324,0.6201605,68223.0,68222.0,2.644824]
[1722170724063,0.6211605,68223.0,68222.0,2.644824]
[1722170724263,0.6201605,68223.0,68222.0,2.644824]
[1722170724665,0.3866355,68223.0,68222.0,2.644824]
[1722170724894,0.0348485,68223.0,68222.0,2.94850869]
[1722170725177,0.18963481,68223.0,68222.0,3.65209269]
[1722170725327,0.05692966,68223.0,68222.0,3.41756469]
[1722170725531,0.08984377,68223.0,68222.0,3.41756469]
[1722170725744,0.002,68223.0,68222.0,3.41756469]
[1722170726153,0.06687641,68223.0,68222.0,3.41756469]
[1722170726359,0.06787641,68223.0,68222.0,3.41756469]
[1722170726566,0.04590922,68223.0,68222.0,3.41756469]
[1722170726988,0.04390922,68223.0,68222.0,3.41756469]
[1722170727190,0.04490922,68223.0,68222.0,3.41756469]
[1722170727429,0.002,68223.0,68222.0,3.42356469]
[1722170727556,0.001,68223.0,68222.0,3.41756469]
[1722170727944,0.002,68223.0,68222.0,3.42356469]
[1722170728344,0.002,68223.0,68222.0,3.65809269]
[1722170728655,0.001,68223.0,68222.0,3.65809269]
[1722170728864,0.02400334,68223.0,68222.0,3.65809269]
[1722170729091,0.001,68223.0,68222.0,3.65809269]
[1722170729290,0.001,68223.0,68222.0,3.65909269]
[1722170729291,0.002,68223.0,68222.0,3.65909269]
[1722170732357,0.02500272,68223.0,68222.0,3.65909269]
[1722170732726,0.02592625,68223.0,68222.0,3.65909269]
[1722170732912,0.02500272,68223.0,68222.0,3.65909269]
[1722170736211,0.02500272,68223.0,68222.0,3.48629157]
[1722170736657,0.02500272,68223.0,68222.0,3.65909269]
[1722170738547,0.00292353,68223.0,68222.0,3.65909269]
[1722170738900,0.002,68223.0,68222.0,3.48629157]
[1722170739345,0.002,68223.0,68222.0,3.42456469]
[1722170739743,0.00292353,68223.0,68222.0,3.42456469]
[1722170740361,0.00292353,68223.0,68222.0,3.25176357]
[1722170741829,0.02592637,68223.0,68222.0,3.25176357]
[1722170742244,0.02592637,68223.0,68222.0,3.42456469]
[1722170742903,0.00292353,68223.0,68222.0,3.42456469]
[1722170744433,0.002,68223.0,68222.0,3.42456469]
[1722170744557,0.002,68223.0,68222.0,3.65909269]
[1722170745105,0.002,68223.0,68222.0,4.21688026]
[1722170745330,0.002,68223.0,68222.0,4.46688026]
[1722170745729,0.002,68223.0,68222.0,4.46788026]
[1722170745946,0.001,68223.0,68222.0,4.46688026]
[1722170746166,0.02399987,68223.0,68222.0,4.46688026]
[1722170746401,0.02499987,68223.0,68222.0,4.74356456]
[1722170746529,0.002,68223.0,68222.0,4.74356456]
[1722170746729,0.001,68223.0,68222.0,4.74356456]
[1722170746935,0.00084,68238.0,68237.0,1.15188669]
[1722170747137,0.00084,68238.0,68237.0,1.15088669]
[1722170747754,0.00084,68238.0,68237.0,1.38536269]
[1722170748161,0.00084,68238.0,68237.0,1.38436269]
[1722170749027,0.00184,68238.0,68237.0,1.39836269]
[1722170749810,0.024838,68238.0,68237.0,1.20604299]
[1722170750007,0.024838,68238.0,68237.0,1.16388669]
[1722170750168,0.00284,68238.0,68237.0,1.17788669]
[1722170751979,0.00284,68238.0,68237.0,0.77160957]
[1722170752182,0.12099953,68238.0,68237.0,0.21242069]
[1722170752385,0.09830933,68238.0,68237.0,0.21242069]
[1722170752790,0.09830933,68238.0,68237.0,0.04061957]
[1722170752991,0.03470933,68238.0,68237.0,0.04061957]
[1722170753323,0.05770908,68238.0,68237.0,0.04061957]
[1722170753523,0.12337888,68238.0,68237.0,0.04061957]
[1722170753774,0.101493,68238.0,68237.0,0.04061957]
[1722170754158,0.101493,68238.0,68237.0,0.21242069]
[1722170754159,0.05770908,68238.0,68237.0,0.21242069]
[1722170754684,0.10149258,68238.0,68237.0,0.21242069]
[1722170755445,0.05770908,68238.0,68237.0,0.21242069]
[1722170755606,0.10150423,68238.0,68237.0,0.21242069]
[1722170756085,0.05770908,68238.0,68237.0,0.21242069]
[1722170756359,0.10150423,68238.0,68237.0,0.21242069]
[1722170756560,0.05770908,68238.0,68237.0,0.21242069]
[1722170756791,0.10151147,68238.0,68237.0,0.21242069]
[1722170757217,0.05770908,68238.0,68237.0,0.21242069]
[1722170757594,0.12358112,68238.0,68237.0,0.21242069]
[1722170757739,0.05786681,68238.0,68237.0,0.21242069]
[1722170757936,0.05786681,68238.0,68237.0,0.028]
[1722170757937,0.17510427,68238.0,68237.0,0.028]
[1722170758195,0.26272899,68238.0,68237.0,0.04061957]
[1722170758397,0.28463518,68238.0,68237.0,0.04061957]
[1722170758549,0.28463518,68238.0,68237.0,0.0295542]
[1722170758550,0.64405027,68238.0,68237.0,0.0295542]
[1722170758966,0.87852327,68238.0,68237.0,0.028]
[1722170759185,1.12511562,68238.0,68237.0,0.028]
[1722170759372,1.09591674,68238.0,68237.0,0.014]
[1722170759552,1.17511562,68238.0,68237.0,0.023]
[1722170760027,1.17411562,68238.0,68237.0,0.009]
[1722170760176,0.58959031,68238.0,68237.0,0.009]
[1722170760379,0.09958131,68238.0,68237.0,0.20542069]
[1722170760576,0.09958131,68238.0,68237.0,0.54513469]
[1722170760577,0.14441711,68238.0,68237.0,0.54513469]
[1722170760783,0.03380531,68238.0,68237.0,0.53613469]
[1722170760984,0.0995688,68238.0,68237.0,0.54013469]
[1722170761183,0.03480531,68238.0,68237.0,0.92161069]
[1722170761409,0.1005688,68238.0,68237.0,0.92161069]
[1722170761575,0.0995688,68238.0,68237.0,0.91461069]
[1722170761771,0.0985688,68238.0,68237.0,0.91061069]
[1722170762037,0.0985688,68238.0,68237.0,0.91361069]
[1722170762242,0.0985688,68238.0,68237.0,0.67913469]
[1722170762417,0.0985688,68238.0,68237.0,0.67613469]
[1722170762631,0.05580476,68238.0,68237.0,0.67613469]
[1722170762825,0.03253624,68238.0,68237.0,0.91361069]
[1722170763076,0.03253624,68238.0,68237.0,0.67913469]
[1722170763215,0.03253624,68238.0,68237.0,0.91761069]
[1722170763571,0.03253624,68238.0,68237.0,0.67913469]
[1722170763704,0.03253624,68238.0,68237.0,0.68313469]
[1722170764267,0.03253624,68238.0,68237.0,0.91761069]
[1722170764447,0.14220445,68238.0,68237.0,0.91761069]
[1722170764642,0.14220445,68238.0,68237.0,0.68313469]
[1722170765382,0.06761042,68238.0,68237.0,0.68313469]
[1722170765603,0.08955939,68238.0,68237.0,0.68313469]
[1722170765933,0.06866027,68238.0,68237.0,0.68313469]
[1722170766269,0.09060884,68238.0,68237.0,0.68313469]
[1722170766463,0.09060799,68238.0,68237.0,0.91761069]
[1722170766670,0.06773548,68238.0,68237.0,0.91761069]
[1722170767470,0.06773548,68238.0,68237.0,0.91061069]
[1722170767676,0.06773548,68238.0,68237.0,1.14508669]
[1722170767847,0.06873548,68238.0,68237.0,1.16208669]
[1722170768049,0.02483962,68238.0,68237.0,1.16208669]
[1722170768259,0.02483962,68238.0,68237.0,1.14508669]
[1722170768260,0.06873722,68238.0,68237.0,1.14508669]
[1722170768655,0.06873722,68238.0,68237.0,0.91561069]
[1722170768656,0.02583962,68238.0,68237.0,0.91561069]
[1722170768891,0.09168602,68238.0,68237.0,0.91561069]
[1722170769065,0.09069977,68238.0,68237.0,0.91061069]
[1722170769267,0.02576315,68238.0,68237.0,0.91061069]
[1722170769488,0.02576315,68238.0,68237.0,0.92461069]
[1722170769489,0.11357669,68238.0,68237.0,0.92461069]
[1722170769775,0.11357669,68238.0,68237.0,0.91061069]
[1722170769776,0.13453008,68238.0,68237.0,0.91061069]
[1722170770175,0.13453008,68238.0,68237.0,0.31565869]
[1722170770373,0.05564923,68238.0,68237.0,0.31565869]
[1722170770709,0.03264961,68238.0,68237.0,0.18442069]
[1722170770915,0.03264961,68238.0,68237.0,0.19842069]
[1722170771325,0.03264961,68238.0,68237.0,0.21042069]
[1722170771326,0.03364961,68238.0,68237.0,0.21042069]
[1722170771894,0.03264961,68238.0,68237.0,0.19842069]
[1722170772209,0.00276353,68238.0,68237.0,0.03861957]
[1722170772405,0.00276353,68238.0,68237.0,0.21042069]
[1722170772610,0.00276353,68238.0,68237.0,0.31365869]
[1722170772979,0.00276353,68238.0,68237.0,0.30165869]
[1722170772980,0.03289902,68238.0,68237.0,0.30165869]
[1722170773182,0.03489902,68238.0,68237.0,0.32665869]
[1722170773959,0.05689864,68238.0,68237.0,0.19542069]
[1722170774117,0.05789864,68238.0,68237.0,0.32565869]
[1722170774931,0.03489902,68238.0,68237.0,0.32565869]
[1722170775385,0.03489902,68238.0,68237.0,0.32548104]
[1722170775589,0.03499784,68238.0,68237.0,0.32548104]
[1722170775933,0.00376353,68238.0,68237.0,0.55995704]
[1722170776358,0.00376353,68238.0,68237.0,0.38815592]
[1722170776558,0.00284,68238.0,68237.0,0.93833304]
[1722170776918,0.04677712,68238.0,68237.0,0.93833304]
[1722170777117,0.00284,68238.0,68237.0,0.93833304]
[1722170777319,0.04677548,68238.0,68237.0,0.93833304]
[1722170777723,0.06874789,68238.0,68237.0,0.93833304]
[1722170777927,0.0467748,68238.0,68237.0,0.93833304]
[1722170778344,0.06977369,68238.0,68237.0,0.93833304]
[1722170778743,0.07069518,68238.0,68237.0,0.93833304]
[1722170778948,0.06977165,68238.0,68237.0,0.93833304]
[1722170779206,0.02583889,68238.0,68237.0,1.17280904]
[1722170780572,0.00284,68238.0,68237.0,1.17280904]
[1722170782194,0.00284,68238.0,68237.0,1.00100792]
[1722170782398,0.00284,68238.0,68237.0,1.17280904]
[1722170782782,0.00284,68238.0,68237.0,1.40728504]
[1722170784005,0.02583803,68238.0,68237.0,1.40728504]
[1722170784340,0.02583803,68238.0,68237.0,1.23548392]
[1722170784538,0.02383803,68238.0,68237.0,1.38328504]
[1722170784743,0.02483803,68238.0,68237.0,1.39428504]
[1722170785169,0.00184,68238.0,68237.0,1.39428504]
[1722170785367,0.00084,68238.0,68237.0,1.38328504]
[1722170785568,0.00084,68238.0,68237.0,1.39728504]
[1722170785569,0.00184,68238.0,68237.0,1.39728504]
[1722170785975,0.00184,68238.0,68237.0,1.41128504]
[1722170786190,0.00184,68238.0,68237.0,1.39728504]
[1722170786600,0.00184,68238.0,68237.0,1.41128504]
[1722170788804,0.02483756,68238.0,68237.0,1.41128504]
[1722170789914,0.00184,68238.0,68237.0,1.41128504]
[1722170791152,0.00184,68238.0,68237.0,1.23948392]
[1722170791552,0.00184,68238.0,68237.0,1.41128504]
[1722170792574,0.00184,68238.0,68237.0,1.17680904]
[1722170792989,0.04577014,68238.0,68237.0,1.17680904]
[1722170793158,0.06876829,68238.0,68237.0,1.17680904]
[1722170793598,0.02483815,68238.0,68237.0,1.17680904]
[1722170793769,0.06876945,68238.0,68237.0,1.17680904]
[1722170794818,0.04577203,68238.0,68237.0,1.17680904]
[1722170795811,0.00184,68238.0,68237.0,1.17680904]
[1722170796016,0.00184,68238.0,68237.0,1.17773304]
[1722170798001,0.02483807,68238.0,68237.0,1.17773304]
[1722170798201,0.00184,68238.0,68237.0,1.17773304]
[1722170801537,0.02483815,68238.0,68237.0,1.17773304]
[1722170801727,0.00184,68238.0,68237.0,1.17773304]
[1722170802300,0.04577416,68238.0,68237.0,1.17773304]
[1722170802684,0.06774124,68238.0,68237.0,1.00593192]
[1722170803255,0.06774124,68238.0,68237.0,1.17773304]
[1722170803653,0.06774124,68238.0,68237.0,1.00593192]
[1722170803924,0.06774124,68238.0,68237.0,1.17773304]
[1722170804302,0.00184,68238.0,68237.0,1.17773304]
[1722170805128,0.02483819,68238.0,68237.0,1.17773304]
[1722170805626,0.11274012,68238.0,68237.0,1.17773304]
[1722170806732,0.02483819,68238.0,68237.0,1.17773304]
[1722170806936,0.11277119,68238.0,68237.0,1.17773304]
[1722170807466,0.02483819,68238.0,68237.0,1.17773304]
[1722170809735,0.02483819,68238.0,68237.0,1.00593192]
[1722170810098,0.02483819,68238.0,68237.0,1.17773304]
[1722170811305,0.13477974,68238.0,68237.0,1.17773304]
[1722170811487,0.05510905,68238.0,68237.0,1.17773304]
[1722170811885,0.05603258,68238.0,68237.0,1.17773304]
[1722170812890,0.05603258,68238.0,68237.0,1.00593192]
[1722170813087,0.05603258,68238.0,68237.0,1.17773304]
[1722170813314,0.11279613,68238.0,68237.0,1.17773304]
[1722170813515,0.08979794,68238.0,68237.0,1.17773304]
[1722170813682,0.0678071,68238.0,68237.0,1.17773304]
[1722170813883,0.06780704,68238.0,68237.0,1.17773304]
[1722170814881,0.00184,68238.0,68237.0,1.17773304]
[1722170815547,0.08979605,68238.0,68237.0,1.17773304]
[1722170816182,0.08980082,68238.0,68237.0,1.17773304]
[1722170816354,0.00184,68238.0,68237.0,1.17773304]
[1722170816558,0.08980598,68238.0,68237.0,1.17773304]
[1722170816737,0.02483831,68238.0,68237.0,1.17773304]
[1722170817144,0.02576184,68238.0,68237.0,1.17773304]
[1722170817569,0.02576184,68238.0,68237.0,1.11133304]
[1722170817781,0.12231734,68238.0,68237.0,0.21316704]
[1722170817946,0.12231734,68238.0,68237.0,0.56488104]
[1722170818269,0.31535334,68238.0,68237.0,0.04136592]
[1722170818467,0.54982634,68238.0,68237.0,0.04136592]
[1722170818672,0.17511903,68238.0,68237.0,0.21316704]
[1722170818830,0.29235503,68238.0,68237.0,0.04136592]
[1722170819034,0.29235503,68238.0,68237.0,0.21316704]
[1722170819035,0.17511903,68238.0,68237.0,0.21316704]
[1722170819694,0.32355936,68238.0,68237.0,0.21316704]
[1722170820035,0.29175451,68238.0,68237.0,0.18516704]
[1722170820231,0.33301059,68238.0,68237.0,0.19916704]
[1722170820432,0.45024659,68238.0,68237.0,0.21316704]
[1722170820685,0.45024659,68238.0,68237.0,0.19916704]